[Event "Early-Titled-Tuesday-Blitz-April-02-2024"]
[Site "Chess.com"]
[Date "2024.04.02"]
[Round "6"]
[White "Mr_ruthless"]
[Black "KnightmareJoker"]
[Result "1-0"]
[WhiteElo "2508"]
[BlackElo "2324"]
[TimeControl "180+1"]
[EndTime "9:05:27 PDT"]
[Termination "Mr_ruthless won by checkmate"]

1. Nf3 {[%clk 0:03:00.9]} 1... d5 {[%clk 0:03:00.5]} 2. g3 {[%clk 0:03:01.3]}
2... Nf6 {[%clk 0:03:00.9]} 3. Bg2 {[%clk 0:03:00.9]} 3... c5 {[%clk 0:03:01.7]}
4. c4 {[%clk 0:02:59.2]} 4... e6 {[%clk 0:03:00.4]} 5. O-O {[%clk 0:02:56.8]}
5... Bd6 {[%clk 0:03:00.3]} 6. b3 {[%clk 0:02:53.4]} 6... d4 {[%clk 0:03:00.2]}
7. e3 {[%clk 0:02:49.7]} 7... e5 {[%clk 0:03:00.5]} 8. exd4 {[%clk 0:02:48.9]}
8... exd4 {[%clk 0:03:01.4]} 9. Re1+ {[%clk 0:02:48.5]} 9... Be6 {[%clk
0:03:01.5]} 10. Ng5 {[%clk 0:02:41.2]} 10... Qd7 {[%clk 0:02:58.6]} 11. Nxe6
{[%clk 0:02:38.9]} 11... fxe6 {[%clk 0:02:58.4]} 12. d3 {[%clk 0:02:39.4]} 12...
O-O {[%clk 0:02:57.2]} 13. Nd2 {[%clk 0:02:39.9]} 13... Nc6 {[%clk 0:02:57]} 14.
Ne4 {[%clk 0:02:34.7]} 14... Ne5 {[%clk 0:02:48]} 15. Nxd6 {[%clk 0:02:30.5]}
15... Qxd6 {[%clk 0:02:47.7]} 16. Bf4 {[%clk 0:02:30.5]} 16... Nfd7 {[%clk
0:02:43.2]} 17. Qh5 {[%clk 0:02:30.4]} 17... Rf5 {[%clk 0:02:41.1]} 18. Qe2
{[%clk 0:02:27.1]} 18... Qb6 {[%clk 0:02:23.7]} 19. Bh3 {[%clk 0:02:20]} 19...
Qc6 {[%clk 0:01:47.7]} 20. Bxf5 {[%clk 0:01:52.3]} 20... Nf3+ {[%clk 0:01:47.5]}
21. Qxf3 {[%clk 0:01:51.5]} 21... Qxf3 {[%clk 0:01:47.2]} 22. Bxe6+ {[%clk
0:01:52.2]} 22... Kh8 {[%clk 0:01:47.2]} 23. Bxd7 {[%clk 0:01:52.6]} 23... Qxd3
{[%clk 0:01:46.7]} 24. Rad1 {[%clk 0:01:51.5]} 24... Qg6 {[%clk 0:01:42.9]} 25.
Bh3 {[%clk 0:01:46.6]} 25... Rf8 {[%clk 0:01:40]} 26. Bg2 {[%clk 0:01:46.1]}
26... b6 {[%clk 0:01:37.8]} 27. Be4 {[%clk 0:01:42.5]} 27... Qg4 {[%clk
0:01:34.9]} 28. f3 {[%clk 0:01:42.3]} 28... Qd7 {[%clk 0:01:18.6]} 29. Bd3
{[%clk 0:01:42.4]} 29... Qf7 {[%clk 0:01:01.6]} 30. Re5 {[%clk 0:01:36.7]} 30...
Re8 {[%clk 0:00:48.8]} 31. Rde1 {[%clk 0:01:35.5]} 31... Rxe5 {[%clk 0:00:48.5]}
32. Rxe5 {[%clk 0:01:36.4]} 32... h6 {[%clk 0:00:47.6]} 33. Kg2 {[%clk
0:01:29.1]} 33... a5 {[%clk 0:00:43.4]} 34. h4 {[%clk 0:01:26.4]} 34... a4
{[%clk 0:00:28.8]} 35. h5 {[%clk 0:01:25.7]} 35... axb3 {[%clk 0:00:15.9]} 36.
axb3 {[%clk 0:01:26.6]} 36... Qa7 {[%clk 0:00:16]} 37. Re8# {[%clk 0:01:25.1]}
1-0

[Event "Early-Titled-Tuesday-Blitz-April-02-2024"]
[Site "Chess.com"]
[Date "2024.04.02"]
[Round "6"]
[White "DenLaz"]
[Black "Suleyman_Chess06"]
[Result "1-0"]
[WhiteElo "3106"]
[BlackElo "2767"]
[TimeControl "180+1"]
[EndTime "9:05:28 PDT"]
[Termination "DenLaz won by resignation"]

1. d4 {[%clk 0:03:00.9]} 1... Nf6 {[%clk 0:02:58.9]} 2. c4 {[%clk 0:03:01.5]}
2... e6 {[%clk 0:02:59]} 3. Nf3 {[%clk 0:03:01.4]} 3... d5 {[%clk 0:02:59.5]} 4.
g3 {[%clk 0:03:02]} 4... Be7 {[%clk 0:02:59.6]} 5. Bg2 {[%clk 0:03:02.7]} 5...
O-O {[%clk 0:03:00.3]} 6. O-O {[%clk 0:03:03.2]} 6... dxc4 {[%clk 0:03:01]} 7.
Qc2 {[%clk 0:03:03.7]} 7... b5 {[%clk 0:02:59.1]} 8. a4 {[%clk 0:03:03.7]} 8...
b4 {[%clk 0:02:59.6]} 9. Nbd2 {[%clk 0:03:03.8]} 9... b3 {[%clk 0:02:58]} 10.
Qxc4 {[%clk 0:02:58.4]} 10... Ba6 {[%clk 0:02:58.3]} 11. Qxb3 {[%clk 0:02:57.5]}
11... Bxe2 {[%clk 0:02:54.6]} 12. Re1 {[%clk 0:02:56.7]} 12... Ba6 {[%clk
0:02:55]} 13. Ne5 {[%clk 0:02:55.2]} 13... Nd5 {[%clk 0:02:51.3]} 14. Ndc4
{[%clk 0:02:53.9]} 14... c6 {[%clk 0:02:34.1]} 15. Bd2 {[%clk 0:02:51.6]} 15...
Qc7 {[%clk 0:02:19.8]} 16. Rac1 {[%clk 0:02:51.2]} 16... Rc8 {[%clk 0:02:18.4]}
17. Na5 {[%clk 0:02:47.5]} 17... Qb6 {[%clk 0:02:04.4]} 18. Qxb6 {[%clk
0:02:45.4]} 18... axb6 {[%clk 0:02:05.3]} 19. Naxc6 {[%clk 0:02:45.8]} 19...
Nxc6 {[%clk 0:02:05.6]} 20. Nxc6 {[%clk 0:02:46.7]} 20... Bf6 {[%clk 0:02:04.7]}
21. Nb4 {[%clk 0:02:29.5]} 21... Bb7 {[%clk 0:01:54.4]} 22. Nxd5 {[%clk
0:02:28.5]} 22... Bxd5 {[%clk 0:01:51.9]} 23. Bxd5 {[%clk 0:02:27.1]} 23... exd5
{[%clk 0:01:52.8]} 24. Be3 {[%clk 0:02:24.2]} 24... h5 {[%clk 0:01:50]} 25. b3
{[%clk 0:02:23.5]} 25... Kh7 {[%clk 0:01:45.7]} 26. Kf1 {[%clk 0:02:21.4]} 26...
b5 {[%clk 0:01:39.1]} 27. Rxc8 {[%clk 0:02:12.2]} 27... Rxc8 {[%clk 0:01:40]}
28. Rc1 {[%clk 0:02:10.5]} 28... Rb8 {[%clk 0:01:35]} 29. a5 {[%clk 0:02:07.9]}
29... Be7 {[%clk 0:01:30.8]} 30. Rc7 {[%clk 0:02:05.9]} 30... Bb4 {[%clk
0:01:28.4]} 31. Rxf7 {[%clk 0:02:03.7]} 31... Bxa5 {[%clk 0:01:20]} 32. Rd7
{[%clk 0:02:03.8]} 32... Bc3 {[%clk 0:01:13]} 33. Rxd5 {[%clk 0:02:03.2]} 33...
b4 {[%clk 0:01:13.6]} 34. Rxh5+ {[%clk 0:02:02.7]} 34... Kg6 {[%clk 0:01:13.4]}
35. Ra5 {[%clk 0:01:48.7]} 35... Rd8 {[%clk 0:01:11.7]} 36. Ke2 {[%clk 0:01:48]}
36... Bxd4 {[%clk 0:01:09.3]} 37. Bxd4 {[%clk 0:01:48.1]} 37... Rxd4 {[%clk
0:01:10.2]} 38. Rb5 {[%clk 0:01:48.7]} 38... Kf6 {[%clk 0:01:05.7]} 39. Ke3
{[%clk 0:01:49.3]} 39... Rd1 {[%clk 0:01:04.7]} 40. Rxb4 {[%clk 0:01:49.4]}
40... Kf5 {[%clk 0:01:05.4]} 41. h4 {[%clk 0:01:49.5]} 41... Kg6 {[%clk
0:01:04.9]} 42. Rb5 {[%clk 0:01:49.6]} 42... Kh6 {[%clk 0:01:05.3]} 43. b4
{[%clk 0:01:49.6]} 43... Rb1 {[%clk 0:01:05.8]} 44. Rb8 {[%clk 0:01:49.3]} 44...
Rb3+ {[%clk 0:01:05.6]} 45. Ke4 {[%clk 0:01:49.7]} 45... Rb2 {[%clk 0:01:06]}
46. Kf3 {[%clk 0:01:50.3]} 46... g6 {[%clk 0:01:06.1]} 47. b5 {[%clk 0:01:50.3]}
47... Rb3+ {[%clk 0:01:06.2]} 48. Kg2 {[%clk 0:01:50.5]} 48... Rb2 {[%clk
0:01:06.4]} 49. b6 {[%clk 0:01:51.1]} 49... Kh7 {[%clk 0:01:06.9]} 50. b7 {[%clk
0:01:51.6]} 50... Rb1 {[%clk 0:01:07]} 51. f4 {[%clk 0:01:51.8]} 51... Rb3
{[%clk 0:01:06.9]} 52. g4 {[%clk 0:01:52]} 52... Rb4 {[%clk 0:01:04.9]} 53. f5
{[%clk 0:01:47.3]} 53... Rxg4+ {[%clk 0:01:05.3]} 54. Kf3 {[%clk 0:01:47.7]}
54... Rb4 {[%clk 0:01:05.8]} 55. f6 {[%clk 0:01:47.3]} 55... Rb6 {[%clk
0:01:05.2]} 56. Ke3 {[%clk 0:01:41.9]} 56... Rxf6 {[%clk 0:01:04.5]} 57. Rc8
{[%clk 0:01:41.7]} 57... Re6+ {[%clk 0:00:52]} 58. Kd4 {[%clk 0:01:40.4]} 58...
Rb6 {[%clk 0:00:51.7]} 59. b8=Q {[%clk 0:01:40.4]} 1-0

[Event "Early-Titled-Tuesday-Blitz-April-02-2024"]
[Site "Chess.com"]
[Date "2024.04.02"]
[Round "6"]
[White "shimastream"]
[Black "flawian2008"]
[Result "1-0"]
[WhiteElo "3001"]
[BlackElo "2502"]
[TimeControl "180+1"]
[EndTime "9:05:28 PDT"]
[Termination "shimastream won by resignation"]

1. e4 {[%clk 0:03:00.9]} 1... c5 {[%clk 0:02:59.7]} 2. Nf3 {[%clk 0:02:59.9]}
2... Nc6 {[%clk 0:03:00]} 3. Nc3 {[%clk 0:02:58.1]} 3... g6 {[%clk 0:03:00.1]}
4. d4 {[%clk 0:02:55.9]} 4... cxd4 {[%clk 0:03:01]} 5. Nxd4 {[%clk 0:02:56.1]}
5... Bg7 {[%clk 0:03:01.6]} 6. Nxc6 {[%clk 0:02:56.5]} 6... bxc6 {[%clk
0:03:01.8]} 7. Bc4 {[%clk 0:02:57.1]} 7... d6 {[%clk 0:02:54.9]} 8. O-O {[%clk
0:02:56.1]} 8... Nf6 {[%clk 0:02:55]} 9. e5 {[%clk 0:02:56.1]} 9... dxe5 {[%clk
0:02:43.8]} 10. Qxd8+ {[%clk 0:02:57]} 10... Kxd8 {[%clk 0:02:44.7]} 11. Re1
{[%clk 0:02:57.3]} 11... e6 {[%clk 0:02:32]} 12. Rxe5 {[%clk 0:02:56.3]} 12...
Nd7 {[%clk 0:02:27.8]} 13. Re1 {[%clk 0:02:49.4]} 13... Nb6 {[%clk 0:02:26.7]}
14. Bd3 {[%clk 0:02:31.4]} 14... a5 {[%clk 0:02:18.8]} 15. Bf4 {[%clk
0:02:28.4]} 15... Nd5 {[%clk 0:02:17.8]} 16. Bd2 {[%clk 0:02:25]} 16... Ba6
{[%clk 0:02:13.5]} 17. Bxa6 {[%clk 0:02:24.3]} 17... Rxa6 {[%clk 0:02:14.4]} 18.
Na4 {[%clk 0:02:24.9]} 18... Ke7 {[%clk 0:02:05.3]} 19. Rad1 {[%clk 0:02:22.2]}
19... Rb8 {[%clk 0:02:04]} 20. b3 {[%clk 0:02:21.6]} 20... Nb4 {[%clk 0:02:01]}
21. Bg5+ {[%clk 0:02:11.8]} 21... f6 {[%clk 0:01:51.8]} 22. Nc5 {[%clk
0:02:02.4]} 22... fxg5 {[%clk 0:01:51.3]} 23. Rd7+ {[%clk 0:01:59]} 23... Kf8
{[%clk 0:01:07.8]} 24. Nxe6+ {[%clk 0:01:45.8]} 24... Kg8 {[%clk 0:01:08.1]} 25.
Rxg7+ {[%clk 0:01:44.7]} 25... Kh8 {[%clk 0:01:08.5]} 26. Re7 {[%clk 0:01:38.7]}
26... Nxc2 {[%clk 0:01:06.3]} 27. Rd1 {[%clk 0:01:38.3]} 27... c5 {[%clk
0:00:55.6]} 28. Rdd7 {[%clk 0:01:36.8]} 28... Rxe6 {[%clk 0:00:43.6]} 29. Rxe6
{[%clk 0:01:37.7]} 29... Nd4 {[%clk 0:00:44.1]} 30. Ree7 {[%clk 0:01:36.7]}
30... a4 {[%clk 0:00:42.9]} 31. Rxh7+ {[%clk 0:01:34]} 31... Kg8 {[%clk
0:00:43.6]} 32. Rdg7+ {[%clk 0:01:33.4]} 32... Kf8 {[%clk 0:00:44.2]} 33. Rxg6
{[%clk 0:01:25.6]} 33... axb3 {[%clk 0:00:42.1]} 34. Rh8+ {[%clk 0:01:21.5]}
34... Kf7 {[%clk 0:00:42.7]} 35. Rxb8 {[%clk 0:01:22.3]} 35... Kxg6 {[%clk
0:00:43.6]} 36. axb3 {[%clk 0:01:22.4]} 36... Kf5 {[%clk 0:00:43.9]} 37. Kf1
{[%clk 0:01:21.7]} 37... Ke4 {[%clk 0:00:44.8]} 38. g3 {[%clk 0:01:07.1]} 38...
Kd3 {[%clk 0:00:44.4]} 39. h4 {[%clk 0:01:06.9]} 39... gxh4 {[%clk 0:00:44.8]}
40. gxh4 {[%clk 0:01:07.8]} 40... Kc3 {[%clk 0:00:43.6]} 41. h5 {[%clk 0:01:08]}
41... Nxb3 {[%clk 0:00:44.3]} 42. h6 {[%clk 0:01:07.9]} 42... Nd2+ {[%clk
0:00:44.6]} 43. Ke2 {[%clk 0:01:07.3]} 43... c4 {[%clk 0:00:40]} 44. h7 {[%clk
0:01:06.7]} 1-0

[Event "Early-Titled-Tuesday-Blitz-April-02-2024"]
[Site "Chess.com"]
[Date "2024.04.02"]
[Round "6"]
[White "zajka-molotok"]
[Black "N_I_Chess"]
[Result "1-0"]
[WhiteElo "2550"]
[BlackElo "2372"]
[TimeControl "180+1"]
[EndTime "9:05:33 PDT"]
[Termination "zajka-molotok won on time"]

1. b3 {[%clk 0:03:00.9]} 1... Nf6 {[%clk 0:02:56.6]} 2. Bb2 {[%clk 0:03:01.8]}
2... b6 {[%clk 0:02:55.1]} 3. e3 {[%clk 0:03:01.5]} 3... Bb7 {[%clk 0:02:53.5]}
4. Nf3 {[%clk 0:03:01.8]} 4... d6 {[%clk 0:02:51.3]} 5. d4 {[%clk 0:03:00.4]}
5... g6 {[%clk 0:02:51.3]} 6. Be2 {[%clk 0:03:00.5]} 6... Bg7 {[%clk 0:02:51.9]}
7. O-O {[%clk 0:03:00.6]} 7... O-O {[%clk 0:02:52.6]} 8. c4 {[%clk 0:03:00.5]}
8... Nbd7 {[%clk 0:02:51.9]} 9. Nc3 {[%clk 0:03:00.6]} 9... Re8 {[%clk
0:02:50.2]} 10. Qc2 {[%clk 0:02:59.5]} 10... e5 {[%clk 0:02:48.9]} 11. Rad1
{[%clk 0:02:58.6]} 11... a6 {[%clk 0:02:43.6]} 12. d5 {[%clk 0:02:57.2]} 12...
Nh5 {[%clk 0:02:26.2]} 13. g3 {[%clk 0:02:55.6]} 13... f5 {[%clk 0:02:21.9]} 14.
Nd2 {[%clk 0:02:48.9]} 14... Nhf6 {[%clk 0:02:20.9]} 15. f4 {[%clk 0:02:48.9]}
15... h6 {[%clk 0:01:31.2]} 16. e4 {[%clk 0:02:43.5]} 16... exf4 {[%clk
0:01:18.7]} 17. exf5 {[%clk 0:02:42.5]} 17... g5 {[%clk 0:01:17.2]} 18. gxf4
{[%clk 0:02:39.5]} 18... Qe7 {[%clk 0:01:10.5]} 19. Rde1 {[%clk 0:02:31.7]}
19... Qe3+ {[%clk 0:00:58.5]} 20. Kh1 {[%clk 0:02:31.2]} 20... c6 {[%clk
0:00:53.2]} 21. Bf3 {[%clk 0:02:02]} 21... Qxe1 {[%clk 0:00:51.6]} 22. Rxe1
{[%clk 0:02:02.9]} 22... Rxe1+ {[%clk 0:00:51.7]} 23. Kg2 {[%clk 0:02:03.8]}
23... cxd5 {[%clk 0:00:46.8]} 24. fxg5 {[%clk 0:01:52.6]} 24... hxg5 {[%clk
0:00:22.6]} 25. Nxd5 {[%clk 0:01:50.6]} 25... Rb8 {[%clk 0:00:14.4]} 26. Kf2
{[%clk 0:01:24.2]} 26... Ree8 {[%clk 0:00:07.2]} 27. Nc7 {[%clk 0:01:12.4]}
27... Re7 {[%clk 0:00:04]} 28. Ne6 {[%clk 0:01:12.3]} 28... Bxf3 {[%clk
0:00:03.2]} 29. Nxf3 {[%clk 0:01:09.3]} 29... g4 {[%clk 0:00:01]} 30. Nfg5
{[%clk 0:01:08.7]} 1-0

[Event "Early-Titled-Tuesday-Blitz-April-02-2024"]
[Site "Chess.com"]
[Date "2024.04.02"]
[Round "6"]
[White "Rutricks"]
[Black "zverr1"]
[Result "1-0"]
[WhiteElo "2711"]
[BlackElo "2554"]
[TimeControl "180+1"]
[EndTime "9:05:34 PDT"]
[Termination "Rutricks won on time"]

1. Nc3 {[%clk 0:03:00.9]} 1... c6 {[%clk 0:02:54.8]} 2. b3 {[%clk 0:02:54.9]}
2... d5 {[%clk 0:02:52.2]} 3. Bb2 {[%clk 0:02:55.6]} 3... Nf6 {[%clk 0:02:52.4]}
4. d4 {[%clk 0:02:55.4]} 4... g6 {[%clk 0:02:47.8]} 5. Qd2 {[%clk 0:02:55.1]}
5... Bg7 {[%clk 0:02:46.8]} 6. f3 {[%clk 0:02:53.9]} 6... O-O {[%clk 0:02:45.9]}
7. e4 {[%clk 0:02:53.9]} 7... dxe4 {[%clk 0:02:39.7]} 8. fxe4 {[%clk 0:02:54.8]}
8... e5 {[%clk 0:02:33.6]} 9. d5 {[%clk 0:02:49.4]} 9... Ng4 {[%clk 0:02:19.3]}
10. h3 {[%clk 0:02:38.3]} 10... Qh4+ {[%clk 0:02:04.1]} 11. Ke2 {[%clk
0:02:38.7]} 11... b6 {[%clk 0:01:26.1]} 12. Nf3 {[%clk 0:01:04.8]} 12... Ba6+
{[%clk 0:01:04.5]} 13. Kd1 {[%clk 0:01:04.9]} 13... Qh5 {[%clk 0:00:24.6]} 14.
Rg1 {[%clk 0:00:47.2]} 14... Bh6 {[%clk 0:00:22.9]} 15. hxg4 {[%clk 0:00:46]}
15... Qxg4 {[%clk 0:00:16]} 16. Qe1 {[%clk 0:00:45.3]} 16... Bxf1 {[%clk
0:00:16.7]} 17. Rxf1 {[%clk 0:00:40.6]} 17... Nd7 {[%clk 0:00:05.4]} 18. Bc1
{[%clk 0:00:37.3]} 1-0

[Event "Early-Titled-Tuesday-Blitz-April-02-2024"]
[Site "Chess.com"]
[Date "2024.04.02"]
[Round "6"]
[White "CarlosjPineror"]
[Black "HeroWilczek"]
[Result "1-0"]
[WhiteElo "2684"]
[BlackElo "2550"]
[TimeControl "180+1"]
[EndTime "9:05:37 PDT"]
[Termination "CarlosjPineror won by resignation"]

1. e4 {[%clk 0:03:00.9]} 1... e6 {[%clk 0:02:59.5]} 2. d4 {[%clk 0:02:59.2]}
2... d5 {[%clk 0:03:00.2]} 3. e5 {[%clk 0:02:59.4]} 3... c5 {[%clk 0:03:00.3]}
4. c3 {[%clk 0:03:00.1]} 4... Nc6 {[%clk 0:03:00.9]} 5. Nf3 {[%clk 0:03:00.7]}
5... Bd7 {[%clk 0:03:00]} 6. a3 {[%clk 0:02:59.3]} 6... c4 {[%clk 0:02:57.6]} 7.
Nbd2 {[%clk 0:02:58.7]} 7... Na5 {[%clk 0:02:55.6]} 8. g3 {[%clk 0:02:58.6]}
8... Ne7 {[%clk 0:02:50.9]} 9. h4 {[%clk 0:02:51.2]} 9... Nc8 {[%clk 0:02:50.1]}
10. Bh3 {[%clk 0:02:49.5]} 10... Nb6 {[%clk 0:02:50.1]} 11. O-O {[%clk
0:02:49.1]} 11... Ba4 {[%clk 0:02:50.1]} 12. Qe2 {[%clk 0:02:36.8]} 12... Nb3
{[%clk 0:02:48.6]} 13. Nxb3 {[%clk 0:02:33.7]} 13... Bxb3 {[%clk 0:02:49.5]} 14.
Nd2 {[%clk 0:02:19.3]} 14... Be7 {[%clk 0:02:44.4]} 15. Nxb3 {[%clk 0:02:18.5]}
15... cxb3 {[%clk 0:02:45.3]} 16. Qb5+ {[%clk 0:02:12.1]} 16... Qd7 {[%clk
0:02:42.1]} 17. Qxb3 {[%clk 0:02:12.2]} 17... Qa4 {[%clk 0:02:26.9]} 18. Qxa4+
{[%clk 0:02:03.2]} 18... Nxa4 {[%clk 0:02:27.8]} 19. Rd1 {[%clk 0:01:55.4]}
19... O-O {[%clk 0:02:21.1]} 20. Bf1 {[%clk 0:01:54.1]} 20... a6 {[%clk
0:02:13.5]} 21. Bd3 {[%clk 0:01:35.9]} 21... b5 {[%clk 0:02:06.8]} 22. Rb1
{[%clk 0:01:06]} 22... Rfc8 {[%clk 0:02:06.2]} 23. Bd2 {[%clk 0:01:04.5]} 23...
Rab8 {[%clk 0:01:57]} 24. Rdc1 {[%clk 0:00:54.3]} 24... h6 {[%clk 0:01:54.3]}
25. h5 {[%clk 0:00:51.7]} 25... Kf8 {[%clk 0:01:45.6]} 26. b3 {[%clk 0:00:47.8]}
26... Nb6 {[%clk 0:01:43.5]} 27. Ra1 {[%clk 0:00:36.4]} 27... Ra8 {[%clk
0:01:22.2]} 28. Kf1 {[%clk 0:00:36.2]} 28... Ke8 {[%clk 0:01:22.1]} 29. Ke2
{[%clk 0:00:36.5]} 29... Kd7 {[%clk 0:01:21.6]} 30. f4 {[%clk 0:00:37.3]} 30...
Rc7 {[%clk 0:01:09.1]} 31. g4 {[%clk 0:00:36.1]} 31... Nc8 {[%clk 0:01:04.7]}
32. Rg1 {[%clk 0:00:35.3]} 32... Na7 {[%clk 0:01:00.3]} 33. g5 {[%clk
0:00:35.3]} 33... a5 {[%clk 0:00:55.4]} 34. b4 {[%clk 0:00:32.3]} 34... Nc8
{[%clk 0:00:49.4]} 35. Bxb5+ {[%clk 0:00:31.5]} 35... Kd8 {[%clk 0:00:49.2]} 36.
gxh6 {[%clk 0:00:31.1]} 1-0

[Event "Early-Titled-Tuesday-Blitz-April-02-2024"]
[Site "Chess.com"]
[Date "2024.04.02"]
[Round "6"]
[White "LLariMarc"]
[Black "SteinerPro12"]
[Result "1-0"]
[WhiteElo "2413"]
[BlackElo "2173"]
[TimeControl "180+1"]
[EndTime "9:05:37 PDT"]
[Termination "LLariMarc won on time"]

1. d4 {[%clk 0:02:50.9]} 1... d5 {[%clk 0:03:00]} 2. Nf3 {[%clk 0:02:49.9]} 2...
Nf6 {[%clk 0:02:58]} 3. Bg5 {[%clk 0:02:49.8]} 3... h6 {[%clk 0:02:55.8]} 4.
Bxf6 {[%clk 0:02:49.9]} 4... exf6 {[%clk 0:02:56.4]} 5. e3 {[%clk 0:02:50.8]}
5... c6 {[%clk 0:02:55.9]} 6. Nbd2 {[%clk 0:02:51.3]} 6... f5 {[%clk 0:02:52.3]}
7. c4 {[%clk 0:02:49.9]} 7... dxc4 {[%clk 0:02:50.4]} 8. Bxc4 {[%clk 0:02:50.8]}
8... g6 {[%clk 0:02:47.4]} 9. Ne5 {[%clk 0:02:48.9]} 9... Be6 {[%clk 0:02:42.1]}
10. Bxe6 {[%clk 0:02:48.6]} 10... fxe6 {[%clk 0:02:42.8]} 11. Nxg6 {[%clk
0:02:48.8]} 11... Rg8 {[%clk 0:02:42.8]} 12. Qh5 {[%clk 0:02:48.5]} 12... Kd7
{[%clk 0:02:43.3]} 13. Ne5+ {[%clk 0:02:47.3]} 13... Kc7 {[%clk 0:02:43.7]} 14.
g3 {[%clk 0:02:47.8]} 14... Qf6 {[%clk 0:02:33]} 15. O-O {[%clk 0:02:46.4]}
15... Nd7 {[%clk 0:02:31.4]} 16. Nxd7 {[%clk 0:02:40.4]} 16... Kxd7 {[%clk
0:02:31.7]} 17. Rac1 {[%clk 0:02:39.4]} 17... Rg5 {[%clk 0:02:26.6]} 18. Qf3
{[%clk 0:02:38.4]} 18... h5 {[%clk 0:02:25.2]} 19. h4 {[%clk 0:02:37.9]} 19...
Rg4 {[%clk 0:02:22.9]} 20. Kh2 {[%clk 0:02:37.8]} 20... Bd6 {[%clk 0:02:23.1]}
21. Kh3 {[%clk 0:02:35.7]} 21... Rxh4+ {[%clk 0:02:22.7]} 22. gxh4 {[%clk
0:02:35.6]} 22... Rg8 {[%clk 0:02:18]} 23. Rg1 {[%clk 0:02:33.1]} 23... Rg4
{[%clk 0:02:18.9]} 24. Rg3 {[%clk 0:02:25.6]} 24... Qxh4+ {[%clk 0:02:13.2]} 25.
Kg2 {[%clk 0:02:23.9]} 25... Bxg3 {[%clk 0:02:12.9]} 26. fxg3 {[%clk 0:02:23.5]}
26... Qg5 {[%clk 0:02:13.6]} 27. Nf1 {[%clk 0:02:22.2]} 27... h4 {[%clk
0:02:13.6]} 28. Rc5 {[%clk 0:02:19.8]} 28... Re4 {[%clk 0:01:40.6]} 29. Ra5
{[%clk 0:02:13.5]} 29... hxg3 {[%clk 0:01:35.9]} 30. Rxa7 {[%clk 0:02:11.4]}
30... Kc7 {[%clk 0:01:17.8]} 31. Qxg3+ {[%clk 0:02:10.9]} 31... Qxg3+ {[%clk
0:01:10]} 32. Kxg3 {[%clk 0:02:11.8]} 32... Rg4+ {[%clk 0:01:00]} 33. Kf3 {[%clk
0:02:10.8]} 33... Rg1 {[%clk 0:00:59.1]} 34. Nd2 {[%clk 0:02:10.5]} 34... Rd1
{[%clk 0:00:56.5]} 35. Ke2 {[%clk 0:02:10]} 35... Rc1 {[%clk 0:00:55.5]} 36. Kd3
{[%clk 0:02:09.8]} 36... Kb8 {[%clk 0:00:45.6]} 37. Ra3 {[%clk 0:02:08.5]} 37...
Rh1 {[%clk 0:00:43.1]} 38. Rc3 {[%clk 0:02:07.2]} 38... Kc7 {[%clk 0:00:42.5]}
39. a4 {[%clk 0:02:06.9]} 39... Ra1 {[%clk 0:00:40.1]} 40. Ra3 {[%clk
0:02:05.7]} 40... Rh1 {[%clk 0:00:38.7]} 41. a5 {[%clk 0:02:05.4]} 41... Kb8
{[%clk 0:00:36.9]} 42. b4 {[%clk 0:02:05.2]} 42... Rc1 {[%clk 0:00:33.9]} 43.
Rc3 {[%clk 0:02:02.9]} 43... Ra1 {[%clk 0:00:30.1]} 44. Nc4 {[%clk 0:02:02.7]}
44... Rb1 {[%clk 0:00:25.8]} 45. a6 {[%clk 0:01:58.2]} 45... Rxb4 {[%clk
0:00:23]} 46. axb7 {[%clk 0:01:57.7]} 46... Rb5 {[%clk 0:00:10.2]} 47. Ne5
{[%clk 0:01:57.2]} 47... Kxb7 {[%clk 0:00:08.9]} 48. Nxc6 {[%clk 0:01:54.5]}
48... Rb1 {[%clk 0:00:03.9]} 49. Nd8+ {[%clk 0:01:53.8]} 49... Kb6 {[%clk
0:00:04.4]} 50. Nxe6 {[%clk 0:01:54.7]} 50... Rf1 {[%clk 0:00:03.4]} 51. Nf4
{[%clk 0:01:54]} 51... Rd1+ {[%clk 0:00:02.5]} 52. Ke2 {[%clk 0:01:53.4]} 52...
Rh1 {[%clk 0:00:01]} 53. Rc8 {[%clk 0:01:50.4]} 1-0

[Event "Early-Titled-Tuesday-Blitz-April-02-2024"]
[Site "Chess.com"]
[Date "2024.04.02"]
[Round "6"]
[White "Kushch_Nikolai"]
[Black "HanSchut"]
[Result "0-1"]
[WhiteElo "2422"]
[BlackElo "2269"]
[TimeControl "180+1"]
[EndTime "9:05:38 PDT"]
[Termination "HanSchut won by checkmate"]

1. Nf3 {[%clk 0:03:00.9]} 1... Nf6 {[%clk 0:02:59.5]} 2. c4 {[%clk 0:03:00.3]}
2... g6 {[%clk 0:02:59.7]} 3. b4 {[%clk 0:02:59.8]} 3... d5 {[%clk 0:03:00.6]}
4. e3 {[%clk 0:02:56.8]} 4... Bg7 {[%clk 0:02:59.8]} 5. Bb2 {[%clk 0:02:56.7]}
5... O-O {[%clk 0:02:59.9]} 6. d4 {[%clk 0:02:57]} 6... c6 {[%clk 0:02:39.1]} 7.
Nbd2 {[%clk 0:02:56.7]} 7... Bf5 {[%clk 0:02:37.7]} 8. Be2 {[%clk 0:02:56.2]}
8... Ne4 {[%clk 0:02:37.8]} 9. O-O {[%clk 0:02:55.6]} 9... a5 {[%clk 0:02:36.5]}
10. b5 {[%clk 0:02:54.2]} 10... dxc4 {[%clk 0:02:30.2]} 11. Bxc4 {[%clk
0:02:45.1]} 11... cxb5 {[%clk 0:02:23.5]} 12. Bxb5 {[%clk 0:02:44.6]} 12... Qb6
{[%clk 0:02:18.9]} 13. Qb3 {[%clk 0:02:34]} 13... Nd6 {[%clk 0:02:04.3]} 14. Be2
{[%clk 0:02:24.3]} 14... Qa7 {[%clk 0:01:38.8]} 15. a4 {[%clk 0:02:16.2]} 15...
Nc6 {[%clk 0:01:30.5]} 16. Ba3 {[%clk 0:02:16.1]} 16... Rfd8 {[%clk 0:01:18.3]}
17. Bc5 {[%clk 0:02:11]} 17... Qb8 {[%clk 0:01:13.3]} 18. Rac1 {[%clk
0:02:06.6]} 18... Ne4 {[%clk 0:00:57.4]} 19. Nxe4 {[%clk 0:02:03.4]} 19... Bxe4
{[%clk 0:00:58.3]} 20. Bc4 {[%clk 0:02:01.3]} 20... e6 {[%clk 0:00:51.4]} 21.
Bxe6 {[%clk 0:01:51.8]} 21... Bxf3 {[%clk 0:00:49.4]} 22. Bxf7+ {[%clk
0:01:50.9]} 22... Kh8 {[%clk 0:00:50]} 23. gxf3 {[%clk 0:01:50.9]} 23... Qc8
{[%clk 0:00:14.1]} 24. Be6 {[%clk 0:01:49.2]} 24... Qc7 {[%clk 0:00:13.7]} 25.
Bb6 {[%clk 0:01:47.5]} 25... Qe7 {[%clk 0:00:14]} 26. Bxd8 {[%clk 0:01:44.4]}
26... Rxd8 {[%clk 0:00:12.6]} 27. f4 {[%clk 0:01:42.9]} 27... Bxd4 {[%clk
0:00:10.5]} 28. exd4 {[%clk 0:01:37.6]} 28... Nxd4 {[%clk 0:00:11.4]} 29. Qb6
{[%clk 0:01:26.3]} 29... Rd6 {[%clk 0:00:08.6]} 30. Rc8+ {[%clk 0:01:20.8]}
30... Kg7 {[%clk 0:00:09.1]} 31. Rg8+ {[%clk 0:01:16.6]} 31... Kh6 {[%clk
0:00:09.3]} 32. Qc5 {[%clk 0:01:13]} 32... Nf3+ {[%clk 0:00:06]} 33. Kh1 {[%clk
0:01:09.6]} 33... Qh4 {[%clk 0:00:06.9]} 34. h3 {[%clk 0:01:07.5]} 34... Rxe6
{[%clk 0:00:05.9]} 35. Qc1 {[%clk 0:01:02.9]} 35... Qxh3# {[%clk 0:00:05.7]} 0-1